fUSD/lending_fUSD_20260201
["ID","MTS","AMOUNT","RATE_DAILY","PERIOD"]
[404236377,1769986232952,-779.44392,0.00017,2]
[404236378,1769986232962,-500.0,0.00017029,2]
[404236379,1769986232973,-166.66,0.00017048,2]
[404236380,1769986232983,-205.0,0.0001707,2]
[404236381,1769986232992,-481.0,0.00017075,2]
[404236382,1769986233000,-578.20924308,0.00017099,2]
[404236383,1769986233010,-500.0,0.00017099,2]
[404236384,1769986233018,-500.0,0.00017099,2]
[404236385,1769986233028,-500.0,0.00017099,2]
[404236386,1769986233037,-500.0,0.00017099,2]
[404236387,1769986233047,-500.0,0.00017099,2]
[404236388,1769986233056,-500.0,0.00017099,2]
[404236389,1769986233066,-500.0,0.00017099,2]
[404236390,1769986233075,-500.0,0.00017099,2]
[404236391,1769986233085,-500.0,0.00017099,2]
[404236392,1769986233094,-500.0,0.00017099,2]
[404236393,1769986233103,-500.0,0.00017099,2]
[404236394,1769986233112,-209.40437684,0.00017099,2]
[404236395,1769986233122,-500.0,0.00017099,2]
[404236396,1769986233131,-500.0,0.00017099,2]
[404236397,1769986233140,-500.0,0.00017099,2]
[404236398,1769986233149,-500.0,0.00017099,2]
[404236399,1769986233158,-500.0,0.00017099,2]
[404236400,1769986233167,-500.0,0.00017099,2]
[404236401,1769986233177,-250.0,0.00017099,2]
[404236402,1769986233186,-500.0,0.00017099,2]
[404236403,1769986233195,-500.0,0.00017099,2]
[404236404,1769986233204,-250.0,0.00017099,2]
[404236405,1769986233215,-250.0,0.00017099,2]
[404236406,1769986233225,-449.87473057,0.00017099,2]
[404236407,1769986233234,-500.0,0.00017099,2]
[404236408,1769986233244,-250.0,0.00017099,2]
[404236409,1769986233253,-250.0,0.00017099,2]
[404236410,1769986233263,-500.0,0.00017099,2]
[404236411,1769986233272,-250.0,0.00017099,2]
[404236412,1769986233282,-250.0,0.00017099,2]
[404236413,1769986233291,-250.0,0.00017099,2]
[404236414,1769986233300,-250.0,0.00017099,2]
[404236415,1769986233310,-250.0,0.00017099,2]
[404236416,1769986233320,-250.0,0.00017099,2]
[404236417,1769986233330,-250.0,0.00017099,2]
[404236418,1769986233341,-250.0,0.00017099,2]
[404236419,1769986233351,-250.0,0.00017099,2]
[404236420,1769986233360,-250.0,0.00017099,2]
[404236421,1769986233370,-250.0,0.00017099,2]
[404236422,1769986233379,-250.0,0.00017099,2]
[404236423,1769986233388,-250.0,0.00017099,2]
[404236424,1769986233397,-250.0,0.00017099,2]
[404236425,1769986233406,-250.0,0.00017099,2]
[404236426,1769986233415,-250.0,0.00017099,2]
[404236427,1769986233424,-250.0,0.00017099,2]
[404236428,1769986233434,-250.0,0.00017099,2]
[404236429,1769986233444,-250.0,0.00017099,2]
[404236430,1769986233453,-250.0,0.00017099,2]
[404236431,1769986233465,-250.0,0.00017099,2]
[404236432,1769986233474,-250.0,0.00017099,2]
[404236433,1769986233483,-250.0,0.00017099,2]
[404236434,1769986233493,-250.0,0.00017099,2]
[404236435,1769986233502,-250.0,0.00017099,2]
[404236436,1769986233512,-250.0,0.00017099,2]
[404236437,1769986233524,-250.0,0.00017099,2]
[404236438,1769986233533,-250.0,0.00017099,2]
[404236439,1769986233543,-500.0,0.00017099,2]
[404236440,1769986233553,-174.61919141,0.00017099,2]
[404236441,1769986233563,-500.0,0.00017099,2]
[404236442,1769986233572,-500.0,0.00017099,2]
[404236443,1769986233581,-500.0,0.00017099,2]
[404236444,1769986233591,-500.0,0.00017099,2]
[404236445,1769986233601,-721.12765535,0.00017099,2]
[404236446,1769986233610,-500.0,0.00017099,2]
[404236447,1769986233619,-500.0,0.00017099,2]
[404236448,1769986233628,-250.0,0.00017099,2]
[404236449,1769986233637,-500.0,0.00017099,2]
[404236450,1769986233646,-250.0,0.00017099,2]
[404236451,1769986233656,-500.0,0.00017099,2]
[404236452,1769986233665,-250.0,0.00017099,2]
[404236453,1769986233674,-500.0,0.00017099,2]
[404236454,1769986233683,-250.0,0.00017099,2]
[404236455,1769986233693,-500.0,0.00017099,2]
[404236456,1769986233702,-250.0,0.00017099,2]
[404236457,1769986233711,-250.0,0.00017099,2]
[404236458,1769986233722,-250.0,0.00017099,2]
[404236459,1769986233732,-250.0,0.00017099,2]
[404236460,1769986233742,-250.0,0.00017099,2]
[404236461,1769986233751,-250.0,0.00017099,2]
[404236462,1769986233760,-1428.38747117,0.00017099,2]
[404236463,1769986233770,-250.0,0.00017099,2]
[404236464,1769986233779,-151.0,0.00017099,2]
[404236465,1769986233788,-151.0,0.00017099,2]
[404236466,1769986233798,-151.0,0.00017099,2]
[404236467,1769986233806,-151.0,0.00017099,2]
[404236468,1769986233816,-322.6107,0.00017099,2]
[404236469,1769986233825,-151.0,0.00017099,2]
[404236470,1769986233834,-151.0,0.00017099,2]
[404236471,1769986233843,-151.0,0.00017099,2]
[404236472,1769986233853,-151.0,0.00017099,2]
[404236473,1769986233863,-151.0,0.00017099,2]
[404236474,1769986233872,-151.0,0.00017099,2]
[404236475,1769986233882,-151.0,0.00017099,2]
[404236476,1769986233891,-500.0,0.00017099,2]
[404236477,1769986233900,-500.0,0.00017099,2]
[404236478,1769986233909,-500.0,0.00017099,2]
[404236479,1769986233919,-500.0,0.00017099,2]
[404236480,1769986233928,-500.0,0.00017099,2]
[404236481,1769986233939,-500.0,0.00017099,2]
[404236482,1769986233948,-500.0,0.00017099,2]
[404236483,1769986233957,-500.0,0.00017099,2]
[404236484,1769986233968,-500.0,0.00017099,2]
[404236485,1769986234161,-500.0,0.00017099,2]
[404236486,1769986234171,-500.0,0.00017099,2]
[404236487,1769986234180,-500.0,0.00017099,2]
[404236488,1769986234190,-500.0,0.00017099,2]
[404236489,1769986234199,-500.0,0.00017099,2]
[404236490,1769986234208,-500.0,0.00017099,2]
[404236491,1769986234218,-500.0,0.00017099,2]
[404236492,1769986234227,-500.0,0.00017099,2]
[404236493,1769986234236,-500.0,0.00017099,2]
[404236494,1769986234245,-500.0,0.00017099,2]
[404236495,1769986234254,-500.0,0.00017099,2]
[404236496,1769986234264,-500.0,0.00017099,2]
[404236497,1769986234273,-500.0,0.00017099,2]
[404236498,1769986234282,-500.0,0.00017099,2]
[404236499,1769986234291,-500.0,0.00017099,2]
[404236500,1769986234300,-500.0,0.00017099,2]
[404236501,1769986234310,-500.0,0.00017099,2]
[404236502,1769986234319,-500.0,0.00017099,2]
[404236503,1769986234328,-500.0,0.00017099,2]
[404236504,1769986234337,-500.0,0.00017099,2]
[404236505,1769986234347,-500.0,0.00017099,2]
[404236506,1769986234355,-500.0,0.00017099,2]
[404236507,1769986234364,-500.0,0.00017099,2]
[404236508,1769986234374,-241.11788993,0.00017099,2]
[404236509,1769986234383,-209.40437684,0.00017099,2]
[404236510,1769986234393,-209.40437684,0.00017099,2]
[404236511,1769986234402,-200.0,0.00017129,2]
[404236512,1769986234411,-243.0,0.00017151,2]
[404236513,1769986234420,-217.15233878,0.00017154,2]
[404236514,1769986234429,-200.0,0.0001717,2]
[404236515,1769986234438,-200.0,0.00017176,2]
[404236516,1769986234448,-225.18697532,0.00017209,2]
[404236517,1769986234457,-1000.0,0.00017233,2]
[404236518,1769986234466,-500.0,0.0001725,2]
[404236519,1769986234475,-1000.0,0.0001726,2]
[404236520,1769986234484,-200.0,0.00017262,2]
[404236521,1769986234493,-233.51889341,0.00017264,2]
[404236522,1769986234502,-242.15909246,0.00017319,2]
[404236523,1769986234512,-251.11897888,0.00017374,2]
[404236524,1769986234524,-168.0,0.00017427,2]
[404236525,1769986234534,-260.4103811,0.00017429,2]
[404236526,1769986234543,-270.0455652,0.00017484,2]
[404236527,1769986234552,-1045.68637885,0.000175,2]
[404236528,1769986234561,-481.0,0.00017533,2]
[404236529,1769986234570,-1000.0,0.00017534,2]
[404236530,1769986234580,-481.0,0.00017537,2]
[404236531,1769986234589,-280.03725112,0.00017539,2]
[404236532,1769986234599,-2351.0,0.00017556,2]
[404236533,1769986234608,-200.0,0.00017585,2]
[404236534,1769986234617,-290.39862941,0.00017594,2]
[404236535,1769986234626,-250.0,0.0001762,2]
[404236536,1769986234635,-168.0,0.00017638,2]
[404236537,1769986234644,-2119.92322163,0.0001764,2]
[404236538,1769986234654,-181.08010149,0.00017647,2]
[404236539,1769986234663,-1481.23780761,0.00017647,2]
[404236540,1769986234672,-217.15233878,0.00017647,2]
[404236541,1769986234681,-217.15233878,0.00017647,2]
[404236542,1769986234690,-301.1433787,0.00017649,2]
[404236543,1769986234699,-198.88802068,0.000177,2]
[404236544,1769986234708,-773.08,0.00017701,2]
[404236545,1769986234718,-2935.8,0.00017728,2]
[404236546,1769986234727,-1082.33740807,0.00017738,2]
[404236547,1769986234736,-157.45363731,0.0001774,2]
[404236548,1769986234745,-415.52264002,0.0001774,2]
[404236549,1769986234754,-733.03119046,0.0001774,2]
[404236550,1769986234763,-1096.57082121,0.0001774,2]
[404236551,1769986234772,-1483.6932,0.0001774,2]
[404236552,1769986234781,-1898.85844425,0.00017754,2]
[404236553,1769986234792,-1082.33740805,0.00017756,2]
[404236554,1769986234802,-236.803405,0.00017767,2]
[404236555,1769986234811,-3495.695,0.0001777,2]
[404236556,1769986234820,-726.399,0.0001777,2]
[404236557,1769986234829,-1334.0,0.0001777,2]
[404236558,1769986234839,-1410.0,0.0001777,2]
[404236559,1769986234848,-174.174,0.0001777,2]
[404236560,1769986234858,-1272.033,0.0001777,2]
[404236561,1769986234867,-2445.0,0.0001777,2]
[404236562,1769986234878,-6577.0,0.0001777,2]
[404236563,1769986234888,-1082.33740805,0.00017774,2]
[404236564,1769986234897,-500.0,0.00017785,2]
[404236565,1769986234907,-500.0,0.00017785,2]
[404236566,1769986234916,-500.0,0.00017785,2]
[404236567,1769986234926,-500.0,0.00017785,2]
[404236568,1769986234935,-500.0,0.00017785,2]
[404236569,1769986234944,-500.0,0.00017785,2]
[404236570,1769986234954,-500.0,0.00017785,2]
[404236571,1769986234963,-500.0,0.00017785,2]
[404236572,1769986234973,-206.17562172,0.00017785,2]
[404236573,1769986234982,-215.6315839,0.00017785,2]
[404236574,1769986234992,-500.0,0.00017785,2]
[404236575,1769986235001,-500.0,0.00017785,2]
[404236576,1769986235011,-500.0,0.00017785,2]
[404236577,1769986235020,-500.0,0.00017785,2]
[404236578,1769986235030,-500.0,0.00017785,2]
[404236579,1769986235041,-25000.0,0.00017786,3]
[404236580,1769986235051,-1082.33740805,0.00017792,2]
[404236581,1769986235060,-25000.0,0.00017794,3]
[404236582,1769986235071,-500.0,0.00017798,2]
[404236583,1769986235080,-198.88802066,0.000178,2]
[404236584,1769986235089,-487.0,0.000178,2]
[404236585,1769986235098,-487.0,0.000178,2]
[404236586,1769986235107,-487.0,0.000178,2]
[404236587,1769986235116,-487.0,0.000178,2]
[404236588,1769986235126,-487.0,0.000178,2]
[404236589,1769986235135,-487.0,0.000178,2]
[404236590,1769986235143,-487.0,0.000178,2]
[404236591,1769986235153,-487.0,0.000178,2]
[404236592,1769986235161,-487.0,0.000178,2]
[404236593,1769986235170,-487.0,0.000178,2]
[404236594,1769986235180,-501.16,0.000178,2]
[404236595,1769986235189,-925.0,0.00017802,2]
[404236596,1769986235198,-25000.0,0.00017803,3]
[404236597,1769986235208,-1000.0,0.00017808,2]
[404236598,1769986235218,-1082.33740805,0.0001781,2]
[404236599,1769986235227,-25000.0,0.00017812,3]
[404236600,1769986235237,-25000.0,0.00017821,3]
[404236601,1769986235246,-868.76,0.00017821,2]
[404236602,1769986235255,-1082.33740805,0.00017828,2]
[404236603,1769986235264,-264.43161989,0.00017829,2]
[404236604,1769986235273,-214.13018697,0.00017829,2]
[404236605,1769986235282,-25000.0,0.0001783,3]
[404236606,1769986235291,-109605.83836455,0.0001783,2]
[404236607,1769986235300,-25000.0,0.00017838,3]
[404236608,1769986235309,-1082.33740805,0.00017846,2]
[404236609,1769986235318,-2247.69057627,0.00017847,3]
[404236610,1769986235343,-500.0,0.00017785,2]
[404236611,1769986235352,-6.0,0.00017785,2]
[404236612,1769986235363,-494.0,0.00017785,2]
[404236613,1769986235372,-520.33845014,0.00017847,3]
[404236614,1769986238151,-151.0,0.00016101,2]
[404236615,1769986238160,-167.31008018,0.00017721,2]
[404236616,1769986238170,-3252.0,0.0001777,2]
[404236617,1769986238179,-500.0,0.00017785,2]
[404236618,1769986238189,-500.0,0.00017785,2]
[404236619,1769986238198,-500.0,0.00017785,2]
[404236620,1769986238207,-500.0,0.00017785,2]
[404236621,1769986238215,-500.0,0.00017785,2]
[404236622,1769986238224,-500.0,0.00017785,2]
[404236623,1769986238234,-500.0,0.00017785,2]
[404236624,1769986238243,-500.0,0.00017785,2]
[404236625,1769986238252,-500.0,0.00017785,2]
[404236626,1769986238262,-500.0,0.00017785,2]
[404236627,1769986238271,-500.0,0.00017785,2]
[404236628,1769986238280,-500.0,0.00017785,2]
[404236629,1769986238290,-500.0,0.00017785,2]
[404236630,1769986238299,-6463.17522439,0.00017847,3]
[404236631,1769986238311,-2937.00000005,0.00017847,3]
[404236632,1769986238321,-853.2605983,0.00017847,3]
[404236633,1769986238332,-535.41792625,0.00017847,3]
[404236707,1769986240410,-6982.49999993,0.00017847,3]
[404236708,1769986240424,-4460.61722467,0.00017847,3]
[404236709,1769986240433,-25000.0,0.00017847,3]
[404236710,1769986240443,-1000.0,0.00017855,2]
[404236711,1769986240452,-25000.0,0.00017856,3]
[404236712,1769986240461,-25000.0,0.00017856,3]
[404236713,1769986240470,-1082.33740805,0.00017864,2]
[404236714,1769986240479,-25000.0,0.00017865,3]
[404236715,1769986240488,-25000.0,0.00017865,3]
[404236716,1769986240497,-25000.0,0.00017874,3]
[404236717,1769986240507,-25000.0,0.00017874,3]
[404236718,1769986240517,-1082.33740805,0.00017882,2]
[404236719,1769986240527,-22303.28091211,0.00017882,3]
[404236720,1769986240538,-2696.71908789,0.00017882,3]
[404236721,1769986240547,-25000.0,0.00017882,3]
[404236722,1769986240556,-925.0,0.00017886,2]
[404236723,1769986240564,-525.5584,0.00017889,2]
[404236724,1769986240574,-25000.0,0.00017891,3]
[404236725,1769986240583,-25000.0,0.00017891,3]
[404236726,1769986240593,-1000.0,0.00017898,2]
[404236727,1769986240602,-1000.0,0.00017898,2]
[404236728,1769986240611,-1000.0,0.00017898,2]
[404236729,1769986240619,-1000.0,0.00017898,2]
[404236730,1769986240628,-1000.0,0.00017898,2]
[404236731,1769986240637,-1000.0,0.00017898,2]
[404236732,1769986240646,-1000.0,0.00017898,2]
[404236733,1769986240655,-877.279,0.00017898,2]
[404236734,1769986240664,-10138.3866,0.000179,2]
[404236736,1769986240673,-25000.0,0.000179,3]
[404236738,1769986240682,-198.88802066,0.000179,2]
[404236739,1769986240691,-2314.0,0.000179,2]
[404236740,1769986240700,-25000.0,0.000179,3]
[404236741,1769986240709,-1082.33740805,0.000179,2]
[404236742,1769986240718,-826.9836485,0.000179,2]
[404236743,1769986240727,-266.83499189,0.000179,2]
[404236744,1769986240736,-777.41964872,0.000179,2]
[404236745,1769986240745,-743.53578902,0.000179,3]
[404236746,1769986240754,-6238.0,0.000179,2]
[404236747,1769986240764,-168.0,0.00017912,2]
[404236748,1769986240774,-168.0,0.00017913,2]
[404236749,1769986240783,-500.0,0.00017918,2]
[404236750,1769986240792,-607.067,0.0001795,2]
[404236751,1769986240801,-186.09929734,0.00017965,2]
[404236752,1769986240811,-286730.8291506,0.00017975,2]
[404236753,1769986240820,-772.54,0.00017975,2]
[404236754,1769986240829,-94878.4700947,0.00017975,2]
[404236755,1769986240838,-16373.0132202,0.00017975,2]
[404236756,1769986240846,-3110.0,0.00017995,2]
[404236757,1769986240855,-168.0,0.00017999,2]
[404236758,1769986240864,-150.0,0.00017999,2]
[404236759,1769986240873,-153.89565007,0.00017999,2]
[404236760,1769986240883,-6660.54141683,0.00017999,2]
[404236761,1769986240892,-298.78283938,0.00017999,2]
[404236762,1769986240901,-341.12463605,0.00017999,2]
[404236763,1769986240910,-564676.54586237,0.00018,2]
[404236769,1769986244947,-1036.94153083,0.000179,2]
[404236770,1769986244959,-4899.75451964,0.000179,2]
[404236771,1769986244970,-316901.37676439,0.00018,2]
[404236775,1769986246499,-500.0,0.00018,2]
[404236776,1769986572822,-910.0,0.00014207,2]
[404236777,1769986861803,-300.0,0.00014206,2]
[404236778,1769986861824,-150.0,0.00014207,2]
[404236803,1769987432273,-250.01905498,0.00014206,2]
[404236804,1769987432287,-49.98094502,0.00014206,2]
[404236805,1769987432298,-300.0,0.00014206,2]
[404236806,1769987432308,-111.46306641,0.00014206,2]
[404236807,1769987432321,-1088.53693359,0.00014206,2]
[404236808,1769987432331,-386.64,0.00014207,2]
[404236809,1769987432341,-500.0,0.00014207,2]
[404236810,1769987432351,-346.80378404,0.00014207,2]
[404236811,1769987432363,-153.19621596,0.00014207,2]
[404236812,1769987432373,-145.87486466,0.00014207,2]
[404236813,1769987432384,-354.12513534,0.00014207,2]
[404236814,1769987432393,-193.08170808,0.00014207,2]
[404236815,1769987432402,-331.26705321,0.00014373,2]
[404236816,1769987432415,-168.73294679,0.00014373,2]
[404236817,1769987432424,-416.07246383,0.00014373,2]
[404236818,1769987432433,-703.76,0.00014833,2]
[404236819,1769987432443,-250.0,0.00015,2]
[404236820,1769987432451,-390.70838171,0.00015284,2]
[404236821,1769987432463,-644.91161829,0.00015284,2]
[404236822,1769987432474,-1035.62,0.00015325,2]
[404236823,1769987432483,-1035.62,0.00015365,2]
[404236824,1769987432493,-1035.62,0.00015405,2]
[404236825,1769987432502,-1035.62,0.00015445,2]
[404236826,1769987432511,-163.02,0.00015457,2]
[404236827,1769987432521,-498.27742405,0.00015486,2]
[404236829,1769987432532,-537.34257595,0.00015486,2]
[404236831,1769987432541,-300.0,0.00015502,2]
[404236833,1769987432551,-1492.10315733,0.00015503,2]
[404236835,1769987432560,-3937.68383957,0.00015503,2]
[404236837,1769987432569,-6946.54104158,0.00015503,2]
[404236839,1769987432579,-1035.62,0.00015526,2]
[404236841,1769987432588,-420.0,0.0001556,2]
[404236843,1769987432597,-420.0,0.0001556,2]
[404236845,1769987432606,-1035.62,0.00015566,2]
[404236847,1769987432616,-1503.0,0.00015596,2]
[404236848,1769987432625,-1503.0,0.00015596,2]
[404236850,1769987432634,-159.0,0.00015596,2]
[404236852,1769987432643,-151.0,0.00015596,2]
[404236854,1769987432652,-159.30147404,0.00015596,2]
[404236856,1769987432661,-1140.75525277,0.00015596,2]
[404236858,1769987432672,-362.24474723,0.00015596,2]
[404236860,1769987432681,-151.0,0.00015596,2]
[404236862,1769987432694,-195.02760403,0.00015596,2]
[404236864,1769987432705,-266.38014877,0.00015596,2]
[404236866,1769987432717,-1041.5922472,0.00015596,2]
[404236868,1769987432730,-341.92611511,0.00015596,2]
[404236870,1769987432740,-259.16483147,0.00015596,2]
[404236872,1769987432749,-151.0,0.00015596,2]
[404236874,1769987432758,-151.0,0.00015596,2]
[404236876,1769987432767,-80.64054628,0.00015596,2]
[404236879,1769987432778,-70.35945372,0.00015596,2]
[404236881,1769987432788,-151.0,0.00015596,2]
[404236883,1769987432796,-165.75340433,0.00015596,2]
[404236884,1769987432805,-151.0,0.00015596,2]
[404236886,1769987432814,-151.0,0.00015596,2]
[404236888,1769987432823,-151.0,0.00015596,2]
[404236890,1769987432832,-151.0,0.00015596,2]
[404236892,1769987432848,-151.0,0.00015596,2]
[404236894,1769987432857,-151.0,0.00015596,2]
[404236896,1769987432867,-151.0,0.00015596,2]
[404236898,1769987432876,-151.0,0.00015596,2]
[404236900,1769987432887,-151.0,0.00015596,2]
[404236903,1769987432897,-151.0,0.00015596,2]
[404236904,1769987432907,-151.0,0.00015596,2]
[404236906,1769987432918,-151.0,0.00015596,2]
[404236909,1769987432928,-151.0,0.00015596,2]
[404236910,1769987432937,-151.0,0.00015596,2]
[404236913,1769987432947,-151.0,0.00015596,2]
[404236915,1769987432956,-151.0,0.00015596,2]
[404236916,1769987432965,-151.0,0.00015596,2]
[404236919,1769987432976,-151.0,0.00015596,2]
[404236921,1769987432985,-151.0,0.00015596,2]
[404236923,1769987432995,-151.0,0.00015596,2]
[404236925,1769987433006,-151.0,0.00015596,2]
[404236926,1769987433016,-151.0,0.00015596,2]
[404236928,1769987433026,-151.0,0.00015596,2]
[404236930,1769987433035,-151.0,0.00015596,2]
[404236933,1769987433044,-151.0,0.00015596,2]
[404236935,1769987433054,-151.0,0.00015596,2]
[404236937,1769987433063,-151.0,0.00015596,2]
[404236939,1769987433073,-151.0,0.00015596,2]
[404236941,1769987433082,-1035.62,0.00015606,2]
[404236943,1769987433092,-1680.0,0.00015626,2]
[404236945,1769987433101,-195.0,0.00015627,2]
[404236947,1769987433110,-1035.62,0.00015646,2]
[404236948,1769987433120,-500.0,0.00015682,2]
[404236950,1769987433130,-150.0,0.00015682,2]
[404236953,1769987433139,-500.0,0.00015682,2]
[404236954,1769987433148,-390.20209595,0.00015682,2]
[404236957,1769987433160,-109.79790405,0.00015682,2]
[404236959,1769987433170,-500.0,0.00015682,2]
[404236961,1769987433179,-150.0,0.00015682,2]
[404236963,1769987433189,-150.0,0.00015682,2]
[404236965,1769987433198,-150.0,0.00015682,2]
[404236967,1769987433207,-150.0,0.00015682,2]
[404236969,1769987433216,-500.0,0.00015682,2]
[404236970,1769987433226,-150.0,0.00015682,2]
[404236972,1769987433236,-500.0,0.00015682,2]
[404236975,1769987433245,-504.0,0.00015682,2]
[404236977,1769987433254,-150.0,0.00015682,2]
[404236978,1769987433264,-150.0,0.00015682,2]
[404236981,1769987433275,-150.0,0.00015682,2]
[404236983,1769987433284,-500.0,0.00015682,2]
[404236984,1769987433294,-150.0,0.00015682,2]
[404236986,1769987433303,-500.0,0.00015682,2]
[404236988,1769987433312,-150.0,0.00015682,2]
[404236990,1769987433322,-150.0,0.00015682,2]
[404236992,1769987433332,-150.0,0.00015682,2]
[404236994,1769987433341,-150.0,0.00015682,2]
[404236996,1769987433350,-500.0,0.00015682,2]
[404236998,1769987433359,-1035.62,0.00015687,2]
[404237000,1769987433368,-288.83,0.00015708,2]
[404237002,1769987433377,-1035.62,0.00015727,2]
[404237004,1769987433386,-500.0,0.00015737,2]
[404237006,1769987433395,-500.0,0.00015737,2]
[404237008,1769987433404,-150.0,0.00015737,2]
[404237010,1769987433414,-500.0,0.00015737,2]
[404237012,1769987433423,-500.0,0.00015737,2]
[404237014,1769987433433,-150.0,0.00015737,2]
[404237016,1769987433442,-150.0,0.00015737,2]
[404237018,1769987433451,-500.0,0.00015737,2]
[404237020,1769987433461,-150.0,0.00015737,2]
[404237022,1769987433472,-474.5238154,0.00015737,2]
[404237024,1769987433484,-64.880238,0.00015737,2]
[404237026,1769987433494,-260.11986613,0.00015737,2]
[404237028,1769987433505,-243.88013387,0.00015737,2]
[404237031,1769987433516,-150.0,0.00015737,2]
[404237033,1769987433526,-212.88508439,0.00015737,2]
[404237034,1769987433535,-60.20148688,0.00015737,2]
[404237037,1769987433547,-89.79851312,0.00015737,2]
[404237039,1769987433556,-271.24413494,0.00015737,2]
[404237041,1769987433567,-228.75586506,0.00015737,2]
[404237043,1769987433577,-150.0,0.00015737,2]
[404237045,1769987433586,-500.0,0.00015737,2]
[404237047,1769987433596,-10.4971866,0.00015737,2]
[404237119,1769987438394,-139.5028134,0.00015737,2]
[404237120,1769987438404,-265.19440411,0.00015737,2]
[404237121,1769987438413,-150.0,0.00015737,2]
[404237122,1769987438423,-500.0,0.00015737,2]
[404237123,1769987438433,-1035.62,0.00015767,2]
[404237124,1769987438442,-500.0,0.00015792,2]
[404237125,1769987438452,-150.0,0.00015792,2]
[404237126,1769987438462,-500.0,0.00015792,2]
[404237127,1769987438474,-500.0,0.00015792,2]
[404237128,1769987438484,-500.0,0.00015792,2]
[404237129,1769987438494,-150.0,0.00015792,2]
[404237130,1769987438504,-239.91292763,0.00015792,2]
[404237131,1769987438513,-500.0,0.00015792,2]
[404237132,1769987438523,-182.13169308,0.00015792,2]
[404237133,1769987438532,-504.0,0.00015792,2]
[404237134,1769987438542,-150.0,0.00015792,2]
[404237135,1769987438551,-150.88509061,0.00015792,2]
[404237136,1769987438560,-500.0,0.00015792,2]
[404237137,1769987438569,-150.0,0.00015792,2]
[404237138,1769987438579,-500.0,0.00015792,2]
[404237139,1769987438588,-194.68896558,0.00015792,2]
[404237140,1769987438598,-297.35480279,0.00015792,2]
[404237141,1769987438607,-500.0,0.00015792,2]
[404237142,1769987438616,-1035.62,0.00015807,2]
[404237143,1769987438625,-500.0,0.00015846,2]
[404237144,1769987438634,-150.0,0.00015846,2]
[404237145,1769987438643,-191.7999999,0.00015846,2]
[404237146,1769987438652,-500.0,0.00015846,2]
[404237147,1769987438662,-500.0,0.00015846,2]
[404237148,1769987438671,-150.0,0.00015846,2]
[404237149,1769987438680,-500.0,0.00015846,2]
[404237151,1769987438690,-504.0,0.00015846,2]
[404237153,1769987438699,-150.0,0.00015846,2]
[404237155,1769987438707,-522.18032737,0.00015846,2]
[404237157,1769987438716,-500.0,0.00015846,2]
[404237159,1769987438728,-500.0,0.00015846,2]
[404237160,1769987438738,-1035.62,0.00015848,2]
[404237161,1769987438747,-1035.62,0.00015888,2]
[404237162,1769987438756,-500.0,0.00015901,2]
[404237163,1769987438766,-150.0,0.00015901,2]
[404237164,1769987438775,-500.0,0.00015901,2]
[404237165,1769987438784,-500.0,0.00015901,2]
[404237166,1769987438794,-166.03176352,0.00015901,2]
[404237167,1769987438803,-500.0,0.00015901,2]
[404237168,1769987438813,-504.0,0.00015901,2]
[404237169,1769987438823,-150.0,0.00015901,2]